fUSD/lending_fUSD_20250503
["ID","MTS","AMOUNT","RATE_DAILY","PERIOD"]
[359670922,1746238244008,-894.45485732,0.00019721,2]
[359670924,1746238244017,-150.0,0.00019723,2]
[359670926,1746238244030,-150.0,0.00019726,2]
[359670928,1746238244038,-150.0,0.00019735,2]
[359670930,1746238244048,-150.0,0.00019741,2]
[359670932,1746238244058,-150.0,0.00019744,2]
[359670934,1746238244067,-150.0,0.00019761,2]
[359670936,1746238244076,-5430.6003563,0.00019764,2]
[359670938,1746238244085,-5559.3791232,0.00019765,2]
[359670940,1746238244095,-162.20047023,0.00019768,2]
[359670942,1746238244104,-1000.0,0.00019769,2]
[359670944,1746238244113,-151.46858835,0.00019772,2]
[359670945,1746238244122,-3724.06255607,0.00019773,2]
[359670948,1746238244131,-598.70679333,0.00019779,2]
[359670949,1746238244141,-150.0,0.00019784,2]
[359670951,1746238244150,-150.0,0.00019789,2]
[359670953,1746238244159,-152.88244308,0.00019791,2]
[359670955,1746238244168,-150.0,0.00019796,2]
[359670957,1746238244178,-150.0,0.00019797,2]
[359670958,1746238244187,-1058.8187082,0.00019799,2]
[359670959,1746238244196,-11903.88005019,0.000198,2]
[359670960,1746238244205,-150.0,0.00019802,2]
[359670961,1746238244214,-5430.6003563,0.00019809,2]
[359670962,1746238244223,-5559.3791232,0.0001981,2]
[359670963,1746238244232,-348.75959596,0.0001981,2]
[359670964,1746238244241,-150.0,0.00019812,2]
[359670965,1746238244250,-150.0,0.00019812,2]
[359670966,1746238244259,-150.0,0.00019822,2]
[359670967,1746238244269,-150.0,0.00019836,2]
[359670968,1746238244278,-151.0,0.00019838,2]
[359670969,1746238244289,-2000.0,0.0001984,2]
[359670970,1746238244298,-200.0,0.0001984,2]
[359670971,1746238244307,-151.0,0.00019846,2]
[359670972,1746238244317,-151.0,0.00019853,2]
[359670973,1746238244327,-5430.6003563,0.00019855,2]
[359670974,1746238244336,-5559.3791232,0.00019855,2]
[359670975,1746238244346,-151.0,0.00019859,2]
[359670976,1746238244355,-150.0,0.00019859,2]
[359670977,1746238244365,-151.0,0.00019865,2]
[359670978,1746238244375,-500.0,0.00019866,2]
[359670979,1746238244385,-500.0,0.00019866,2]
[359670980,1746238244394,-500.0,0.00019866,2]
[359670981,1746238244404,-193.68187159,0.00019866,2]
[359670982,1746238244413,-500.0,0.00019866,2]
[359670983,1746238244423,-500.0,0.00019866,2]
[359670984,1746238244433,-500.0,0.00019866,2]
[359670985,1746238244442,-450.0,0.00019867,2]
[359670986,1746238244452,-450.0,0.00019867,2]
[359670987,1746238244461,-450.0,0.00019867,2]
[359670988,1746238244470,-450.0,0.00019867,2]
[359670989,1746238244480,-450.0,0.00019867,2]
[359670990,1746238244490,-450.0,0.00019867,2]
[359670991,1746238244500,-450.0,0.00019867,2]
[359670992,1746238244509,-450.0,0.00019867,2]
[359670993,1746238244519,-454.74,0.00019867,2]
[359670994,1746238244528,-450.0,0.00019867,2]
[359670995,1746238244538,-450.0,0.00019867,2]
[359670996,1746238244548,-4725.79,0.00019867,2]
[359670997,1746238244558,-450.0,0.00019867,2]
[359670998,1746238244567,-517.71,0.00019867,2]
[359670999,1746238244577,-1072.23,0.00019867,2]
[359671000,1746238244586,-450.0,0.00019867,2]
[359671001,1746238244598,-450.0,0.00019867,2]
[359671002,1746238244607,-450.0,0.00019867,2]
[359671003,1746238244617,-450.0,0.00019867,2]
[359671004,1746238244626,-450.0,0.00019867,2]
[359671005,1746238244636,-1540.23,0.00019867,2]
[359671006,1746238244645,-450.0,0.00019867,2]
[359671007,1746238244655,-450.0,0.00019867,2]
[359671008,1746238244664,-450.0,0.00019868,2]
[359671009,1746238244674,-315.14875139,0.00019868,2]
[359671010,1746238244683,-450.0,0.00019868,2]
[359671011,1746238244693,-450.0,0.00019868,2]
[359671012,1746238244703,-450.0,0.00019868,2]
[359671013,1746238244713,-450.0,0.00019868,2]
[359671014,1746238244723,-450.0,0.00019868,2]
[359671015,1746238244732,-496.36670578,0.00019868,2]
[359671016,1746238244742,-450.0,0.00019868,2]
[359671017,1746238244751,-450.0,0.00019868,2]
[359671018,1746238244760,-450.0,0.00019868,2]
[359671019,1746238244769,-450.0,0.00019868,2]
[359671020,1746238244779,-450.0,0.00019868,2]
[359671021,1746238244789,-450.0,0.00019868,2]
[359671022,1746238244798,-450.0,0.00019868,2]
[359671023,1746238244808,-450.0,0.00019868,2]
[359671024,1746238244817,-450.0,0.00019868,2]
[359671025,1746238244829,-450.0,0.00019868,2]
[359671026,1746238244839,-450.0,0.00019868,2]
[359671027,1746238244854,-450.0,0.00019868,2]
[359671028,1746238244866,-450.0,0.00019868,2]
[359671029,1746238244875,-233.28334774,0.00019868,2]
[359671030,1746238244885,-450.0,0.00019868,2]
[359671031,1746238244894,-450.0,0.00019868,2]
[359671032,1746238244903,-379.99347333,0.00019868,2]
[359671033,1746238244913,-450.0,0.00019868,2]
[359671034,1746238244923,-450.0,0.00019868,2]
[359671035,1746238244934,-803.52,0.00019868,2]
[359671036,1746238244945,-450.0,0.00019868,2]
[359671037,1746238244955,-450.0,0.00019868,2]
[359671038,1746238244964,-618.5,0.00019868,2]
[359671039,1746238244977,-450.0,0.00019868,2]
[359671040,1746238244986,-450.0,0.00019868,2]
[359671041,1746238244996,-450.0,0.00019868,2]
[359671042,1746238245006,-450.0,0.00019868,2]
[359671043,1746238245015,-450.0,0.00019868,2]
[359671044,1746238245028,-450.0,0.00019868,2]
[359671045,1746238245038,-450.0,0.00019868,2]
[359671046,1746238245047,-450.0,0.00019868,2]
[359671047,1746238245057,-450.0,0.00019868,2]
[359671048,1746238245067,-450.0,0.00019868,2]
[359671049,1746238245076,-450.0,0.00019868,2]
[359671050,1746238245087,-450.0,0.00019868,2]
[359671051,1746238245096,-450.0,0.00019868,2]
[359671052,1746238245108,-450.0,0.00019868,2]
[359671053,1746238245118,-450.0,0.00019868,2]
[359671054,1746238245127,-450.0,0.00019868,2]
[359671055,1746238245136,-450.0,0.00019868,2]
[359671056,1746238245146,-450.0,0.00019868,2]
[359671057,1746238245156,-450.0,0.00019868,2]
[359671058,1746238245165,-450.0,0.00019868,2]
[359671059,1746238245175,-450.0,0.00019868,2]
[359671060,1746238245184,-450.0,0.00019868,2]
[359671061,1746238245194,-450.0,0.00019868,2]
[359671062,1746238245203,-450.0,0.00019868,2]
[359671063,1746238245212,-450.0,0.00019868,2]
[359671064,1746238245221,-450.0,0.00019868,2]
[359671065,1746238245230,-450.0,0.00019868,2]
[359671066,1746238245239,-450.0,0.00019868,2]
[359671067,1746238245250,-450.0,0.00019868,2]
[359671068,1746238245259,-450.0,0.00019868,2]
[359671069,1746238245269,-450.0,0.00019868,2]
[359671070,1746238245278,-450.0,0.00019868,2]
[359671071,1746238245288,-450.0,0.00019868,2]
[359671072,1746238245297,-450.0,0.00019868,2]
[359671073,1746238245306,-450.0,0.00019868,2]
[359671074,1746238245316,-503.03,0.00019868,2]
[359671075,1746238245325,-450.0,0.00019868,2]
[359671076,1746238245335,-450.0,0.00019868,2]
[359671077,1746238245345,-450.0,0.00019868,2]
[359671078,1746238245354,-841.1,0.00019868,2]
[359671079,1746238245364,-486.06,0.00019868,2]
[359671080,1746238245374,-516.06,0.00019868,2]
[359671081,1746238245383,-998.17,0.00019868,2]
[359671082,1746238245393,-450.0,0.00019868,2]
[359671083,1746238245560,-450.0,0.00019868,2]
[359671084,1746238245580,-219.49622307,0.00019868,2]
[359671085,1746238245593,-450.0,0.00019868,2]
[359671086,1746238245604,-450.0,0.00019868,2]
[359671087,1746238245616,-450.0,0.00019868,2]
[359671088,1746238245626,-450.0,0.00019868,2]
[359671089,1746238245637,-450.0,0.00019868,2]
[359671090,1746238245647,-450.0,0.00019868,2]
[359671091,1746238245659,-450.0,0.00019868,2]
[359671092,1746238245670,-450.0,0.00019868,2]
[359671093,1746238245680,-5651.18,0.00019868,2]
[359671094,1746238245691,-221.93108247,0.00019868,2]
[359671095,1746238245700,-611.1,0.00019868,2]
[359671096,1746238245711,-450.0,0.00019868,2]
[359671097,1746238245720,-450.0,0.00019868,2]
[359671098,1746238245730,-450.0,0.00019868,2]
[359671099,1746238245743,-464.23,0.00019868,2]
[359671100,1746238245752,-167.28908916,0.00019868,2]
[359671101,1746238245763,-450.0,0.00019868,2]
[359671102,1746238245772,-450.0,0.00019868,2]
[359671103,1746238245782,-450.0,0.00019868,2]
[359671104,1746238245792,-450.0,0.00019868,2]
[359671105,1746238245802,-450.0,0.00019868,2]
[359671106,1746238245811,-483.72,0.00019868,2]
[359671107,1746238245821,-450.0,0.00019868,2]
[359671108,1746238245831,-596.08,0.00019868,2]
[359671109,1746238245842,-119148.59,0.00019868,2]
[359671110,1746238245852,-450.0,0.00019868,2]
[359671111,1746238245862,-450.0,0.00019868,2]
[359671112,1746238245873,-450.0,0.00019868,2]
[359671113,1746238245883,-521.44,0.00019868,2]
[359671114,1746238245895,-450.0,0.00019868,2]
[359671115,1746238245908,-677.16,0.00019868,2]
[359671116,1746238245918,-450.0,0.00019868,2]
[359671117,1746238245929,-450.0,0.00019868,2]
[359671118,1746238245940,-2188.12,0.00019868,2]
[359671119,1746238245951,-450.0,0.00019868,2]
[359671120,1746238245960,-450.0,0.00019868,2]
[359671121,1746238245971,-577.27296382,0.00019868,2]
[359671122,1746238245982,-450.0,0.00019868,2]
[359671123,1746238245992,-450.0,0.00019868,2]
[359671124,1746238246002,-450.0,0.00019868,2]
[359671125,1746238246011,-1337.88,0.00019868,2]
[359671126,1746238246022,-546.54,0.00019868,2]
[359671127,1746238246034,-450.0,0.00019868,2]
[359671128,1746238246044,-450.0,0.00019868,2]
[359671129,1746238246054,-999.0,0.00019868,2]
[359671130,1746238246063,-450.0,0.00019868,2]
[359671131,1746238246073,-450.0,0.00019868,2]
[359671132,1746238246083,-1724.44,0.00019868,2]
[359671133,1746238246093,-640.0,0.00019868,2]
[359671134,1746238246103,-450.0,0.00019868,2]
[359671135,1746238246113,-450.0,0.00019868,2]
[359671136,1746238246125,-504.14,0.00019868,2]
[359671137,1746238246135,-450.0,0.00019868,2]
[359671138,1746238246145,-477.5,0.00019868,2]
[359671139,1746238246155,-450.0,0.00019868,2]
[359671140,1746238246166,-3122.0,0.00019868,2]
[359671141,1746238246176,-450.0,0.00019868,2]
[359671142,1746238246185,-450.0,0.00019868,2]
[359671143,1746238246195,-450.0,0.00019868,2]
[359671144,1746238246205,-450.0,0.00019868,2]
[359671146,1746238246214,-450.0,0.00019868,2]
[359671147,1746238246224,-450.0,0.00019868,2]
[359671148,1746238246234,-514.08,0.00019868,2]
[359671149,1746238246244,-1457.91,0.00019868,2]
[359671150,1746238246254,-813.85,0.00019868,2]
[359671151,1746238246263,-2941.84,0.00019868,2]
[359671152,1746238246273,-502.93,0.00019868,2]
[359671153,1746238246282,-293.557934,0.00019868,2]
[359671154,1746238246293,-576.09,0.00019868,2]
[359671155,1746238246302,-450.0,0.00019868,2]
[359671156,1746238246312,-450.0,0.00019868,2]
[359671157,1746238246321,-563.61,0.00019868,2]
[359671158,1746238246331,-450.0,0.00019868,2]
[359671159,1746238246340,-450.0,0.00019868,2]
[359671160,1746238246350,-450.0,0.00019868,2]
[359671161,1746238246360,-792.59,0.00019868,2]
[359671162,1746238246370,-545.26,0.00019868,2]
[359671163,1746238246379,-450.0,0.00019868,2]
[359671164,1746238246389,-800.87,0.00019868,2]
[359671165,1746238246400,-450.0,0.00019868,2]
[359671166,1746238246410,-450.0,0.00019868,2]
[359671167,1746238246421,-536.78,0.00019868,2]
[359671168,1746238246431,-3830.22,0.00019868,2]
[359671169,1746238246441,-756.65,0.00019868,2]
[359671170,1746238246453,-219.49622307,0.00019876,2]
[359671171,1746238246463,-219.49622307,0.00019884,2]
[359671172,1746238246473,-150.0,0.00019884,2]
[359671173,1746238246482,-150.0,0.00019888,2]
[359671174,1746238246492,-219.49622307,0.00019892,2]
[359671175,1746238246502,-150.0,0.00019893,2]
[359671176,1746238246512,-1645.39625096,0.000199,2]
[359671177,1746238246521,-664.8439768,0.000199,2]
[359671178,1746238246531,-4833.26870977,0.000199,2]
[359671179,1746238246542,-319.01022124,0.000199,2]
[359671180,1746238246553,-2780.94450003,0.000199,2]
[359671181,1746238246562,-5430.6003563,0.000199,2]
[359671182,1746238246571,-219.49622307,0.000199,2]
[359671183,1746238246581,-5559.3791232,0.000199,2]
[359671184,1746238246591,-180.84581838,0.000199,3]
[359671185,1746238246602,-150.0,0.00019901,2]
[359671186,1746238246611,-150.0,0.00019916,2]
[359671187,1746238246621,-150.0,0.00019925,2]
[359671188,1746238246630,-150.0,0.00019926,2]
[359671189,1746238246640,-6052.22,0.00019934,2]
[359671190,1746238246650,-662.28,0.00019934,2]
[359671191,1746238246660,-450.0,0.00019934,2]
[359671192,1746238246669,-450.0,0.00019934,2]
[359671193,1746238246679,-450.0,0.00019934,2]
[359671194,1746238246689,-450.0,0.00019934,2]
[359671195,1746238246699,-450.0,0.00019934,2]
[359671196,1746238246708,-450.0,0.00019934,2]
[359671197,1746238246718,-450.0,0.00019934,2]
[359671198,1746238246727,-450.0,0.00019934,2]
[359671199,1746238246737,-450.0,0.00019934,2]
[359671200,1746238246748,-498.9,0.00019934,2]
[359671201,1746238246758,-1140.05,0.00019934,2]
[359671202,1746238246768,-1208.01,0.00019934,2]
[359671203,1746238246777,-395.39490778,0.00019934,2]
[359671204,1746238246787,-450.0,0.00019934,2]
[359671205,1746238246797,-450.0,0.00019934,2]
[359671206,1746238246807,-450.0,0.00019934,2]
[359671207,1746238246817,-518.51,0.00019934,2]
[359671208,1746238246826,-450.0,0.00019934,2]
[359671209,1746238246837,-1019.8,0.00019934,2]
[359671210,1746238246846,-525.45,0.00019934,2]
[359671211,1746238246856,-1560.41,0.00019934,2]
[359671212,1746238246865,-450.0,0.00019934,2]
[359671214,1746238246874,-450.0,0.00019934,2]
[359671216,1746238246883,-450.0,0.00019934,2]
[359671218,1746238246892,-150.0,0.00019938,2]
[359671220,1746238246902,-935.549,0.0001995,2]
[359671222,1746238246911,-1243.641,0.0001995,2]
[359671223,1746238246921,-797.0,0.0001995,2]
[359671224,1746238246930,-1464.464,0.0001995,2]
[359671225,1746238246940,-554.55,0.0001995,2]
[359671226,1746238246950,-2072.0,0.0001995,2]
[359671227,1746238246960,-921.65,0.0001995,2]
[359671228,1746238246970,-585.035,0.0001995,2]
[359671229,1746238246979,-890.635,0.0001995,2]
[359671230,1746238246988,-878.0,0.0001995,2]
[359671231,1746238246998,-237.643,0.0001995,2]
[359671232,1746238247008,-267.942,0.0001995,2]
[359671233,1746238247017,-6757.669,0.0001995,2]
[359671234,1746238247031,-4008.0,0.0001995,2]
[359671235,1746238247042,-323.067,0.00019956,2]
[359671236,1746238247053,-1077.03046632,0.00019958,2]
[359671237,1746238247063,-150.0,0.0001996,2]
[359671238,1746238247075,-4093.995,0.00019962,2]
[359671239,1746238247085,-450.0,0.00019966,2]
[359671240,1746238247095,-462.55,0.00019966,2]
[359671241,1746238247105,-902.34,0.00019966,2]
[359671242,1746238247116,-450.0,0.00019966,2]
[359671243,1746238247125,-450.0,0.00019966,2]
[359671244,1746238247135,-450.0,0.00019966,2]
[359671245,1746238247145,-535.63,0.00019966,2]
[359671246,1746238247155,-450.0,0.00019967,2]
[359671247,1746238247165,-1831.0,0.00019968,2]
[359671248,1746238247174,-450.0,0.00019968,2]
[359671249,1746238247183,-647.64,0.00019968,2]
[359671250,1746238247193,-450.0,0.00019968,2]
[359671251,1746238247203,-475.79,0.00019968,2]
[359671252,1746238247212,-450.0,0.00019968,2]
[359671253,1746238247222,-485.27,0.00019968,2]
[359671254,1746238247233,-450.0,0.00019968,2]
[359671255,1746238247242,-450.0,0.00019968,2]
[359671256,1746238247252,-450.0,0.00019968,2]
[359671257,1746238247262,-450.0,0.00019968,2]
[359671258,1746238247271,-450.0,0.00019968,2]
[359671259,1746238247281,-450.0,0.00019968,2]
[359671260,1746238247290,-1031.05,0.00019968,2]
[359671261,1746238247299,-450.0,0.00019968,2]
[359671262,1746238247309,-450.0,0.00019968,2]
[359671263,1746238247319,-543.12,0.00019968,2]
[359671264,1746238247328,-551.47,0.00019968,2]
[359671265,1746238247338,-450.0,0.00019968,2]
[359671266,1746238247348,-1437.18,0.00019968,2]
[359671267,1746238247357,-450.0,0.00019968,2]
[359671268,1746238247367,-450.0,0.00019968,2]
[359671269,1746238247376,-712.59,0.00019968,2]
[359671270,1746238247386,-523.02,0.00019968,2]
[359671271,1746238247396,-464.14593802,0.00019968,2]
[359671272,1746238247406,-503.9,0.00019968,2]
[359671273,1746238247415,-450.0,0.00019968,2]
[359671274,1746238247424,-551.57,0.00019968,2]
[359671275,1746238247433,-450.0,0.00019968,2]
[359671276,1746238247443,-450.0,0.00019968,2]
[359671277,1746238247453,-699.18,0.00019968,2]
[359671278,1746238247462,-450.0,0.00019968,2]
[359671279,1746238247471,-585.04,0.00019968,2]
[359671280,1746238247481,-450.0,0.00019968,2]
[359671281,1746238247490,-752.0,0.00019968,2]
[359671282,1746238247500,-1720.83,0.00019968,2]
[359671283,1746238247509,-742.65,0.00019968,2]
[359671284,1746238247519,-450.0,0.00019968,2]
[359671285,1746238247529,-585.16,0.00019968,2]
[359671286,1746238247538,-663.64,0.00019968,2]
[359671287,1746238247548,-486.75,0.00019968,2]
[359671288,1746238247557,-755.25,0.00019968,2]
[359671289,1746238247567,-1168.72,0.00019968,2]
[359671290,1746238247576,-450.0,0.00019968,2]
[359671291,1746238247585,-450.0,0.00019968,2]
[359671292,1746238247595,-450.0,0.00019968,2]
[359671293,1746238247604,-365.0454029,0.00019968,2]
[359671294,1746238247614,-450.0,0.00019968,2]
[359671295,1746238247623,-993.17,0.00019968,2]
[359671296,1746238247634,-450.0,0.00019968,2]
[359671297,1746238247643,-450.0,0.00019968,2]
[359671298,1746238247653,-1432.92,0.00019968,2]
[359671299,1746238247662,-516.14,0.00019968,2]
[359671300,1746238247671,-497.75,0.00019968,2]
[359671301,1746238247681,-604.28,0.00019968,2]
[359671302,1746238247690,-450.0,0.00019968,2]
[359671303,1746238247700,-632.47,0.00019968,2]
[359671304,1746238247710,-1648.11,0.00019968,2]
[359671305,1746238247720,-680.06,0.00019968,2]
[359671306,1746238247729,-4514.32,0.00019968,2]
[359671307,1746238247739,-4105.15,0.00019968,2]
[359671308,1746238247748,-450.0,0.00019968,2]
[359671309,1746238247758,-450.0,0.00019968,2]
[359671310,1746238247767,-450.0,0.00019968,2]
[359671311,1746238247778,-450.0,0.00019968,2]
[359671312,1746238247788,-977.42,0.00019968,2]
[359671313,1746238247799,-450.0,0.00019968,2]
[359671314,1746238247811,-4493.82,0.00019968,2]
[359671315,1746238247821,-450.0,0.00019968,2]
[359671316,1746238247831,-4831.68,0.00019968,2]
[359671317,1746238247841,-450.0,0.00019968,2]
[359671318,1746238247851,-450.0,0.00019968,2]
[359671319,1746238247861,-254.76141324,0.00019968,2]
[359671320,1746238247871,-26518.59,0.00019968,2]
[359671321,1746238247880,-450.0,0.00019968,2]
[359671322,1746238247890,-1744.7,0.00019968,2]
[359671323,1746238247899,-2480.99,0.00019968,2]
[359671324,1746238247908,-745.52,0.00019968,2]
[359671325,1746238247918,-14870.72,0.00019968,2]
[359671326,1746238247928,-1087.32,0.00019968,2]
[359671327,1746238247938,-450.0,0.00019968,2]
[359671328,1746238247948,-712.48,0.00019968,2]
[359671329,1746238247958,-588.96,0.00019968,2]
[359671330,1746238247967,-2238.11,0.00019968,2]
[359671331,1746238247977,-450.0,0.00019969,2]
[359671332,1746238247988,-450.0,0.00019969,2]
[359671333,1746238247999,-450.0,0.00019969,2]
[359671334,1746238248008,-450.0,0.00019969,2]
[359671335,1746238248017,-450.0,0.00019969,2]
[359671336,1746238248084,-450.0,0.00019969,2]
[359671337,1746238248094,-450.0,0.00019969,2]
[359671338,1746238248103,-450.0,0.00019969,2]
[359671339,1746238248113,-450.0,0.00019969,2]
[359671340,1746238248123,-450.0,0.00019969,2]
[359671341,1746238248132,-450.0,0.00019969,2]
[359671342,1746238248142,-775.07,0.00019969,2]
[359671343,1746238248151,-469.51628982,0.00019969,2]
[359671344,1746238248161,-450.0,0.00019969,2]
[359671345,1746238248171,-450.0,0.00019969,2]
[359671346,1746238248180,-450.0,0.00019969,2]
[359671347,1746238248190,-959.31,0.00019969,2]
[359671348,1746238248199,-526.08,0.00019969,2]
[359671349,1746238248208,-450.0,0.00019969,2]
[359671350,1746238248218,-450.0,0.00019969,2]
[359671351,1746238248228,-450.0,0.00019969,2]
[359671352,1746238248237,-761.29,0.00019969,2]
[359671353,1746238248246,-300.0,0.00019969,2]
[359671354,1746238248257,-578.9,0.00019969,2]
[359671355,1746238248267,-466.17,0.00019969,2]
[359671356,1746238248277,-450.0,0.00019969,2]
[359671357,1746238248286,-450.0,0.00019969,2]
[359671358,1746238248295,-450.0,0.00019969,2]
[359671359,1746238248305,-450.0,0.00019969,2]
[359671360,1746238248314,-396.3745295,0.00019969,2]
[359671361,1746238248323,-450.0,0.00019969,2]
[359671362,1746238248332,-450.0,0.00019969,2]
[359671363,1746238248342,-450.0,0.00019969,2]
[359671364,1746238248351,-173.39625193,0.00019969,2]
[359671365,1746238248360,-2538.96,0.00019969,2]
[359671366,1746238248370,-450.0,0.00019969,2]
[359671367,1746238248379,-478.51,0.00019969,2]
[359671368,1746238248389,-450.0,0.00019969,2]
[359671369,1746238248398,-450.0,0.00019969,2]
[359671370,1746238248407,-450.0,0.00019969,2]
[359671371,1746238248417,-997.53,0.00019969,2]
[359671372,1746238248426,-450.0,0.00019969,2]
[359671373,1746238248436,-450.0,0.00019969,2]
[359671374,1746238248445,-450.0,0.00019969,2]
[359671375,1746238248454,-450.0,0.00019969,2]
[359671376,1746238248464,-1036.2,0.00019969,2]
[359671377,1746238248473,-323.33641145,0.00019969,2]
[359671378,1746238248482,-450.0,0.00019969,2]
[359671379,1746238248491,-450.0,0.00019969,2]
[359671380,1746238248501,-450.0,0.00019969,2]
[359671381,1746238248511,-450.0,0.00019969,2]
[359671382,1746238248520,-450.0,0.00019969,2]
[359671383,1746238248529,-450.0,0.00019969,2]
[359671384,1746238248538,-356.92621628,0.00019969,2]
[359671385,1746238248547,-450.0,0.0001997,2]
[359671386,1746238248557,-150.0,0.00019971,2]
[359671387,1746238248566,-150.0,0.00019972,2]
[359671388,1746238248575,-500.0,0.00019972,2]
[359671389,1746238248584,-500.0,0.00019972,2]
[359671390,1746238248593,-150.0,0.00019972,2]
[359671391,1746238248602,-500.0,0.00019972,2]
[359671392,1746238248612,-222.40857925,0.00019972,2]
[359671393,1746238248621,-500.0,0.00019972,2]
[359671394,1746238248631,-500.0,0.00019972,2]
[359671395,1746238248640,-500.0,0.00019972,2]
[359671396,1746238248649,-228.28560537,0.00019972,2]
[359671397,1746238248658,-641.08241789,0.00019972,2]
[359671398,1746238248668,-500.0,0.00019972,2]
[359671399,1746238248677,-150.0,0.00019972,2]
[359671400,1746238248686,-500.0,0.00019972,2]
[359671401,1746238248696,-500.0,0.00019972,2]
[359671402,1746238248705,-500.0,0.00019972,2]
[359671403,1746238248714,-24428.0,0.00019973,2]
[359671404,1746238248723,-500.0,0.00019973,2]
[359671405,1746238248733,-500.0,0.00019973,2]
[359671406,1746238248742,-502.58925245,0.00019973,2]
[359671407,1746238248751,-402.99682489,0.00019973,2]
[359671408,1746238248760,-501.21994559,0.00019973,2]
[359671409,1746238248769,-501.15741321,0.00019973,2]
[359671410,1746238248779,-500.0,0.00019973,2]
[359671411,1746238248789,-544.89074326,0.00019973,2]
[359671412,1746238248799,-959.0,0.00019973,2]
[359671413,1746238248808,-500.0,0.00019973,2]
[359671414,1746238248818,-500.0,0.00019973,2]
[359671415,1746238248827,-500.0,0.00019973,2]
[359671416,1746238248837,-500.0,0.00019973,2]
[359671417,1746238248845,-500.0,0.00019973,2]
[359671418,1746238248855,-500.0,0.00019973,2]
[359671419,1746238248863,-500.0,0.00019973,2]
[359671420,1746238248873,-150.0,0.00019977,2]
[359671421,1746238248884,-598.099042,0.00019978,2]
[359671422,1746238248893,-420.804023,0.00019978,2]
[359671423,1746238248902,-71816.3722052,0.00019986,2]
[359671424,1746238248911,-1903.5263581,0.00019986,2]
[359671425,1746238248921,-9201.1700275,0.00019986,2]
[359671426,1746238248930,-98123.6228168,0.00019986,2]
[359671427,1746238248939,-6223.9471322,0.00019986,2]
[359671428,1746238248948,-6875.9449032,0.00019986,2]
[359671429,1746238248958,-150.0,0.0001999,2]
[359671430,1746238248967,-1077.03046632,0.0001999,2]
[359671431,1746238248976,-1077.03046632,0.0001999,2]
[359671432,1746238248987,-150.0,0.00019993,2]
[359671433,1746238248998,-150.0,0.00019994,2]
[359671434,1746238249008,-150.0,0.00019996,2]
[359671435,1746238249017,-73414.60337292,0.00019997,2]
[359671436,1746238249029,-500.0,0.00019999,2]
[359671437,1746238249039,-679.71892541,0.00019999,2]
[359671438,1746238249048,-500.0,0.00019999,2]
[359671439,1746238249057,-500.0,0.00019999,2]
[359671440,1746238249067,-330.07121084,0.00019999,2]
[359671441,1746238249076,-300.0,0.00019999,2]
[359671442,1746238249085,-300.0,0.00019999,2]
[359671443,1746238249095,-300.0,0.00019999,2]
[359671444,1746238249105,-267.56632987,0.0002,2]